bitfinex-derivatives/quotes_SOLF0:USTF0_20250820
["timestamp","ask_amount","ask_price","bid_price","bid_amount"]
[1755706923547,3.06,184.71,184.61,5.4165]
[1755706923949,3.06,184.71,184.6,3.04]
[1755706925151,143.48,184.75,184.61,3.04]
[1755706925342,3.06,184.75,184.65,5.4152]
[1755706925548,3.06,184.75,184.66,3.04]
[1755706926441,143.52,184.75,184.66,3.04]
[1755706926643,140.7,184.77,184.66,3.04]
[1755706926846,3.06,184.76,184.66,3.04]
[1755706927249,143.74,184.76,184.66,3.04]
[1755706927456,4.98122798,184.8,184.69,3.04]
[1755706927657,148.72122798,184.8,184.69,3.04]
[1755706928149,8.04122798,184.8,184.69,8.4542]
[1755706928349,143.68,184.8,184.69,8.4542]
[1755706928757,3.06,184.8,184.71,5.4136]
[1755706929056,504.42,184.83,184.72,3.04]
[1755706929443,363.72,184.83,184.72,3.04]
[1755706929656,363.72,184.83,184.68,4.50118026]
[1755706929657,3.06,184.81,184.68,3.04]
[1755706930355,140.64,184.8,184.68,3.04]
[1755706930556,3.06,184.79,184.68,3.04]
[1755706930852,3.06,184.77,184.64,3.04]
[1755706931154,4.98122798,184.74,184.64,3.04]
[1755706931353,3.06,184.73,184.64,3.04]
[1755706931653,3.06,184.73,184.6,3.04]
[1755706931654,140.7,184.72,184.6,3.04]
[1755706931851,3.06,184.71,184.6,3.04]
[1755706932150,8.04122798,184.71,184.6,3.04]
[1755706932549,3.06,184.7,184.57,4.50118026]
[1755706932850,3.06,184.7,184.56,12.95898026]
[1755706933353,3.06,184.7,184.56,8.4578]
[1755706933553,8.04122798,184.7,184.56,8.4578]
[1755706934350,8.04122798,184.7,184.57,5.4178]
[1755706934551,143.86,184.7,184.57,3.04]
[1755706935557,143.86,184.7,184.58,5.4174]
[1755706936350,3.06,184.7,184.57,3.04]
[1755706936556,143.8,184.7,184.57,3.04]
[1755706937259,143.8,184.7,184.58,5.4173]
[1755706937550,143.8,184.7,184.57,3.04]
[1755706938058,3.06,184.7,184.57,3.04]
[1755706938248,140.68,184.69,184.57,8.4577]
[1755706938450,3.06,184.66,184.57,3.04]
[1755706939549,143.8,184.66,184.57,3.04]
[1755706939949,366.96,184.7,184.58,5.4175]
[1755706940159,140.68,184.69,184.59,3.04]
[1755706940357,3.06,184.68,184.59,3.04]
[1755706940853,3.06,184.68,184.55,3.04]
[1755706942346,3.06,184.66,184.55,3.04]
[1755706942959,140.48,184.65,184.55,3.04]
[1755706943552,3.06,184.64,184.55,3.04]
[1755706945456,3.06,184.64,184.58,0.03898598]
[1755706945755,0.03778779,184.61,184.58,0.03898598]
[1755706945960,3.05,184.59,184.58,0.03898598]
[1755706946352,3.05,184.59,184.51,3.04]
[1755706946953,8.03122798,184.59,184.45,2.94]
[1755706947155,4.98122798,184.58,184.45,2.94]
[1755706947460,3.05,184.56,184.45,2.94]
[1755706947861,0.03879724,184.53,184.45,2.94]
[1755706948361,0.03879724,184.53,184.45,7.44118026]
[1755706948556,0.03879724,184.53,184.51,2.94]
[1755706948756,0.03879724,184.53,184.46,2.94]
[1755706949356,0.03879724,184.53,184.47,2.94]
[1755706949551,0.03879724,184.53,184.47,7.44118026]
[1755706949762,0.03879724,184.53,184.48,2.94]
[1755706950452,0.03879724,184.53,184.5,5.4196]
[1755706950657,0.03879724,184.53,184.52,2.94]
[1755706951553,0.03879724,184.53,184.52,8.3592]
[1755706951866,0.03879724,184.53,184.52,2.94]
[1755706953159,0.03879724,184.53,184.46,4.50118026]
[1755706953360,0.03879724,184.53,184.5,2.94]
[1755706953563,0.03879724,184.53,184.47,2.94]
[1755706954066,0.03879724,184.53,184.49,2.94]
[1755706954259,0.03879724,184.53,184.5,2.94]
[1755706954563,3.05,184.63,184.52,2.94]
[1755706957271,3.05,184.63,184.54,5.4186]
[1755706957768,3.05,184.63,184.55,5.4182]
[1755706958464,3.05,184.63,184.54,5.4186]
[1755706958871,3.05,184.63,184.52,2.94]
[1755706959676,3.05,184.63,184.53,2.94]
[1755706960070,3.05,184.63,184.55,2.94]
[1755706960465,3.05,184.63,184.53,4.50118026]
[1755706960668,3.05,184.63,184.53,2.94]
[1755706960969,3.05,184.63,184.5,4.50118026]
[1755706961274,3.05,184.63,184.5,5.4197]
[1755706961468,3.05,184.63,184.49,7.44118026]
[1755706961663,140.66,184.67,184.49,7.44118026]
[1755706961664,3.05,184.59,184.49,2.94]
[1755706962067,3.05,184.55,184.43,4.50118026]
[1755706962273,3.05,184.51,184.39,2.94]
[1755706963778,3.05,184.51,184.4,5.4226]
[1755706963974,3.05,184.51,184.39,2.94]
[1755706964174,3.05,184.51,184.39,8.3628]
[1755706964373,3.05,184.51,184.39,2.94]
[1755706965178,143.69,184.51,184.39,2.94]
[1755706965372,140.6,184.54,184.39,2.94]
[1755706965574,143.65,184.54,184.39,2.94]
[1755706965776,140.6,184.54,184.39,2.94]
[1755706965975,3.05,184.53,184.39,2.94]
[1755706966277,3.05,184.51,184.39,2.94]
[1755706967084,144.13,184.51,184.39,2.94]
[1755706967280,3.05,184.51,184.39,2.94]
[1755706967479,3.05,184.51,184.41,5.4223]
[1755706967784,3.05,184.51,184.39,2.94]
[1755706969078,3.05,184.51,184.43,5.4217]
[1755706969482,3.05,184.51,184.42,2.94]
[1755706969673,3.05,184.51,184.36,2.94]
[1755706970190,3.05,184.5,184.36,2.94]
[1755706970391,3.05,184.5,184.39,5.4229]
[1755706970588,3.05,184.5,184.36,2.94]
[1755706971089,3.05,184.5,184.37,5.4236]
[1755706971480,3.05,184.5,184.36,8.3639]
[1755706971682,3.05,184.5,184.36,2.94]
[1755706971987,3.05,184.5,184.38,5.4232]
[1755706972385,140.98,184.49,184.39,2.94]
[1755706972586,3.05,184.48,184.39,2.94]
[1755706973594,143.97,184.48,184.39,2.94]
[1755706976392,7.77122798,184.47,184.34,3.04]
[1755706976693,2.79,184.46,184.34,3.04]
[1755706977788,2.79,184.46,184.31,5.4254]
[1755706977992,2.79,184.46,184.31,3.04]
[1755706978689,2.79,184.44,184.31,3.04]
[1755706978993,2.79,184.43,184.31,3.04]
[1755706979882,2.79,184.43,184.24,6.08828088]
[1755706979883,2.79,184.42,184.28,3.04]
[1755706980295,2.79,184.42,184.29,3.04]
[1755706980495,2.79,184.41,184.29,3.04]
[1755706981694,2.79,184.37,184.23,3.04]
[1755706982086,2.79,184.33,184.23,3.04]
[1755706982287,2.79,184.33,184.28,0.03885323]
[1755706982288,0.03958811,184.32,184.28,0.03885323]
[1755706982595,2.79,184.31,184.28,0.03885323]
[1755706983295,2.79,184.3,184.28,0.03885323]
[1755706983494,2.82958811,184.32,184.28,0.03885323]
[1755706983799,2.79,184.31,184.28,0.03885323]
[1755706984389,0.03958811,184.32,184.28,0.03885323]
[1755706984390,0.03958811,184.32,184.29,3.04]
[1755706985293,0.03958811,184.32,184.28,0.03885323]
[1755706985496,2.79,184.31,184.28,0.03885323]
[1755706985694,0.03958811,184.32,184.28,0.03885323]
[1755706986894,0.03958811,184.32,184.29,3.04]
[1755706987091,0.03958811,184.32,184.28,0.03885323]
[1755706987092,0.03958811,184.32,184.3,3.04]
[1755706987296,0.03958811,184.32,184.31,3.04]
[1755706987492,0.03958811,184.32,184.28,3.07885323]
[1755706987792,0.03958811,184.32,184.29,3.04]
[1755706988197,0.03958811,184.32,184.28,0.03885323]
[1755706988395,2.79,184.41,184.31,3.04]
[1755706988801,369.32122798,184.44,184.31,3.04]
[1755706988802,364.34,184.44,184.31,3.04]
[1755706988990,364.34,184.44,184.35,3.04]
[1755706989899,0.03920516,184.41,184.38,0.03595104]
[1755706990495,0.03920516,184.41,184.38,3.07595104]
[1755706991593,0.03920516,184.41,184.4,3.04]
[1755706992294,0.03920516,184.41,184.38,0.03595104]
[1755706992501,0.03920516,184.41,184.39,3.04]
[1755706993600,0.03920516,184.41,184.4,3.04]
[1755706995393,0.03920516,184.41,184.4,8.4628]
[1755706995601,2.79,184.52,184.4,3.58]
[1755706995898,2.79,184.52,184.42,5.4221]
[1755706995899,144.31,184.52,184.42,5.4221]
[1755706996300,144.31,184.52,184.4,3.04]
[1755706996496,144.31,184.52,184.4,8.4625]
[1755706997002,144.31,184.52,184.44,0.04148696]
[1755706997299,2.79,184.51,184.44,0.04148696]
[1755706998096,4.98122798,184.48,184.34,3.04]
[1755706998296,2.79,184.47,184.34,3.04]
[1755706998493,2.79,184.47,184.34,8.4643]
[1755706999098,2.79,184.47,184.34,3.04]
[1755706999400,2.79,184.47,184.39,0.04128227]
[1755707000296,4.98122798,184.45,184.39,0.04128227]
[1755707000492,2.79,184.42,184.39,0.04128227]
[1755707000698,2.79,184.42,184.34,3.04]
[1755707001097,141.96,184.44,184.39,0.03554715]
[1755707001295,141.88,184.45,184.39,0.03554715]
[1755707001997,2.79,184.47,184.39,0.03554715]
[1755707002302,141.84,184.48,184.4,3.04]
[1755707002600,141.84,184.48,184.4,8.4625]
[1755707003101,2.79,184.51,184.42,0.04060836]
[1755707003303,144.67,184.51,184.42,0.04060836]
[1755707003997,2.79,184.51,184.43,3.04]
[1755707004193,2.79,184.51,184.42,0.04060836]
[1755707004194,144.59,184.51,184.42,0.04060836]
[1755707004399,144.59,184.51,184.42,3.08060836]
[1755707004894,2.79,184.5,184.42,0.04060836]
[1755707005396,7.77122798,184.5,184.42,0.04060836]
[1755707005594,0.0363862,184.48,184.42,0.04060836]
[1755707006001,141.8963862,184.48,184.42,0.04060836]
[1755707006305,144.8863862,184.48,184.42,0.04060836]
[1755707007806,144.8263862,184.48,184.42,0.04060836]
[1755707008201,3.0263862,184.48,184.42,0.04060836]
[1755707008397,141.66,184.47,184.42,0.04060836]
[1755707008606,2.99,184.45,184.42,0.04060836]
[1755707010107,141.64,184.46,184.42,0.04060836]
[1755707010311,2.99,184.43,184.42,0.04060836]
[1755707010505,2.99,184.45,184.42,0.04060836]
[1755707010810,2.99,184.44,184.42,0.04060836]
[1755707011611,2.99,184.43,184.42,0.04060836]
[1755707013410,141.52,184.45,184.42,0.04060836]
[1755707013604,2.99,184.44,184.42,0.04060836]
[1755707013802,141.52,184.45,184.42,0.04060836]
[1755707014110,2.99,184.43,184.42,0.04060836]
[1755707015212,141.5,184.44,184.42,0.04060836]
[1755707015412,144.49,184.44,184.42,0.04060836]
[1755707015909,2.99,184.44,184.42,0.04060836]
[1755707016108,144.51,184.44,184.42,0.04060836]
[1755707016313,5.01761418,184.48,184.42,0.04060836]
[1755707016514,141.44,184.47,184.42,0.04060836]
[1755707016717,2.99,184.46,184.42,0.04060836]
[1755707017111,2.99,184.45,184.42,0.04060836]
[1755707017313,2.99,184.44,184.42,0.04060836]
[1755707018818,2.99,184.46,184.42,0.04060836]
[1755707019019,2.99,184.45,184.42,0.04060836]
[1755707019518,2.99,184.44,184.42,0.04060836]
[1755707019718,0.0363862,184.48,184.42,0.04060836]
[1755707019917,141.1963862,184.48,184.42,0.04060836]
[1755707020313,0.0363862,184.48,184.44,2.86]
[1755707020614,0.0363862,184.48,184.45,2.86]
[1755707020819,0.0363862,184.48,184.42,0.04060836]
[1755707021220,0.0363862,184.48,184.42,5.46280836]
[1755707021922,0.0363862,184.48,184.42,0.04060836]
[1755707022118,0.0363862,184.48,184.43,2.86]
[1755707022318,0.0363862,184.48,184.44,5.4213]
[1755707022518,0.0363862,184.48,184.46,2.86]
[1755707022719,0.0363862,184.48,184.43,2.86]
[1755707022916,0.0363862,184.48,184.45,2.86]
[1755707023119,0.0363862,184.48,184.42,0.04060836]
[1755707023614,0.0363862,184.48,184.43,2.86]
[1755707023817,0.0363862,184.48,184.42,0.04060836]
[1755707024021,0.0363862,184.48,184.43,2.86]
[1755707024218,0.0363862,184.48,184.42,0.04060836]
[1755707024419,0.0363862,184.48,184.43,2.86]
[1755707024922,0.0363862,184.48,184.46,2.86]
[1755707025118,0.0363862,184.48,184.47,2.86]
[1755707028225,0.0363862,184.48,184.47,8.2807]
[1755707028826,0.0363862,184.48,184.47,8.8207]
[1755707029021,0.0363862,184.48,184.47,3.4]
[1755707029722,0.0363862,184.48,184.47,8.8207]
[1755707031223,0.0363862,184.48,184.47,3.4]
[1755707031725,0.0363862,184.48,184.47,2.86]
[1755707036633,0.0363862,184.48,184.47,8.2807]
[1755707038432,0.0363862,184.48,184.47,2.86]
[1755707039636,0.0363862,184.48,184.47,8.2807]
[1755707040238,2.99,184.54,184.49,5.4201]
[1755707040438,2.95,184.58,184.49,8.5001]
[1755707040641,2.95,184.58,184.49,3.08]
[1755707041036,2.95,184.58,184.51,3.08]
[1755707041440,2.95,184.63,184.53,2.99084774]
[1755707041635,2.95,184.63,184.53,3.03124632]
[1755707042938,2.99084774,184.62,184.53,0.04039858]
[1755707043142,2.95,184.61,184.53,0.04039858]
[1755707043739,2.95,184.58,184.53,0.04039858]
[1755707044444,140.56,184.6,184.44,3.08]
[1755707044445,2.95,184.55,184.44,3.08]
[1755707044735,2.95,184.52,184.43,4.5260581]
[1755707044934,2.95,184.52,184.44,3.08]
[1755707045135,143.55084774,184.56,184.44,3.08]
[1755707045136,2.95,184.56,184.46,2.99084774]
[1755707045534,2.95,184.56,184.47,3.08]
[1755707045738,2.95,184.56,184.49,0.03844463]
[1755707049554,2.99084774,184.62,184.5,3.08]
[1755707049748,2.95,184.61,184.5,3.08]
[1755707050151,2.95,184.61,184.51,5.4194]
[1755707050352,2.95,184.61,184.54,0.03495754]
[1755707052855,364.38,184.64,184.55,3.08]
[1755707053657,364.38,184.64,184.57,5.4177]
[1755707054257,364.38,184.64,184.56,5.418]
[1755707054457,364.38,184.64,184.59,0.03870823]
[1755707054652,2.95,184.62,184.59,0.03870823]
[1755707055955,2.95,184.67,184.59,0.03870823]
[1755707056150,143.45,184.67,184.59,5.45560823]
[1755707056550,143.45,184.67,184.59,0.03870823]
[1755707056956,2.95,184.67,184.59,0.03870823]
[1755707059459,2.95,184.63,184.59,0.03870823]
[1755707059665,2.95,184.64,184.59,0.03870823]
[1755707060361,2.95,184.61,184.5,3.08]
[1755707060564,2.95,184.58,184.47,4.5260581]
[1755707060965,2.95,184.58,184.47,9.9467581]
[1755707061159,2.95,184.58,184.47,4.5260581]
[1755707061359,2.95,184.58,184.46,7.6060581]
[1755707061560,2.95,184.58,184.46,3.08]
[1755707062759,143.39,184.58,184.46,3.08]
[1755707062962,146.38084774,184.58,184.46,3.08]
[1755707063271,146.38084774,184.58,184.47,3.08]
[1755707063473,2.95,184.58,184.48,3.08]
[1755707063669,2.95,184.58,184.51,3.08]
[1755707064369,5.94084774,184.58,184.46,7.6060581]
[1755707064767,5.94084774,184.58,184.47,4.5260581]
[1755707065066,5.94084774,184.58,184.46,3.08]
[1755707065067,5.94084774,184.58,184.46,7.6060581]
[1755707065870,2.95,184.58,184.46,7.6060581]
[1755707066169,2.95,184.58,184.48,2.79]
[1755707066560,2.95,184.58,184.51,5.4195]
[1755707066765,2.95,184.58,184.51,8.2095]
[1755707067164,3.03,184.61,184.51,2.79]
[1755707067860,3.03,184.61,184.48,4.5260581]
[1755707068059,3.03,184.61,184.49,4.5260581]
[1755707068360,3.03,184.61,184.49,2.79]
[1755707069471,3.03,184.61,184.49,7.3160581]
[1755707070476,3.03,184.61,184.49,12.7359581]
[1755707070775,3.03,184.61,184.49,7.3160581]
[1755707071469,3.03,184.61,184.5,5.4198]
[1755707072177,3.03,184.61,184.5,9.9458581]
[1755707073678,3.03,184.61,184.49,7.3160581]
[1755707073874,4.98376809,184.6,184.49,4.5260581]
[1755707074076,3.03,184.59,184.49,4.5260581]
[1755707074377,3.03,184.59,184.48,4.5260581]
[1755707074573,3.03,184.59,184.47,4.5260581]
[1755707074773,3.03,184.59,184.46,7.3160581]
[1755707075072,3.03,184.59,184.46,2.79]
[1755707075867,3.03,184.59,184.46,7.3160581]
[1755707076267,3.03,184.59,184.47,2.79]
[1755707076577,3.03,184.55,184.45,4.5260581]
[1755707076873,3.03,184.55,184.46,2.79]
[1755707077868,3.03,184.55,184.47,2.79]
[1755707080276,3.03,184.55,184.44,4.5260581]
[1755707081183,3.03,184.55,184.43,12.7378581]
[1755707081479,4.98376809,184.55,184.43,7.3160581]
[1755707081780,3.03,184.54,184.43,7.3160581]
[1755707081979,3.03,184.54,184.43,2.79]
[1755707082181,3.03,184.54,184.41,4.5260581]
[1755707082781,3.03,184.54,184.4,7.3160581]
[1755707083083,3.03,184.5,184.4,2.79]
[1755707083879,3.03,184.5,184.38,4.5260581]
[1755707084072,3.03,184.5,184.39,2.79]
[1755707084277,3.03,184.5,184.4,5.4227]
[1755707084679,3.03,184.5,184.41,2.79]
[1755707085475,3.03,184.5,184.41,7.3160581]
[1755707085881,3.03,184.5,184.42,5.4221]
[1755707086082,3.03,184.5,184.39,4.5260581]
[1755707086284,2.99442106,184.48,184.39,4.5260581]
[1755707086486,3.03,184.47,184.39,4.5260581]
[1755707087083,3.03,184.47,184.38,7.3160581]
[1755707087584,3.03,184.47,184.38,2.79]
[1755707090289,3.03,184.47,184.39,5.423]
[1755707090590,3.03,184.47,184.38,2.79]
[1755707090790,3.03,184.47,184.4,5.4227]
[1755707090989,3.03,184.47,184.41,2.79]
[1755707091387,3.03,184.47,184.41,8.2124]
[1755707091591,0.03889075,184.46,184.43,2.99442106]
[1755707091794,0.03889075,184.46,184.45,2.79]
[1755707092093,3.03,184.54,184.45,2.79]
[1755707092494,3.03,184.54,184.46,5.4209]
[1755707092792,3.03,184.54,184.45,2.79]
[1755707093689,3.03,184.54,184.45,8.2112]
[1755707093887,3.03,184.54,184.45,2.79]
[1755707094994,3.03,184.54,184.45,8.2112]
[1755707095992,3.03,184.54,184.45,2.79]
[1755707099394,3.01,184.51,184.41,3.09]
[1755707099891,3.01,184.48,184.41,3.09]
[1755707100297,2.99442106,184.46,184.39,4.5260581]
[1755707100487,2.99442106,184.46,184.37,7.6160581]
[1755707100488,3.01,184.45,184.37,7.6160581]
[1755707100688,3.01,184.45,184.37,3.09]
[1755707101391,3.01,184.45,184.35,4.5260581]
[1755707101602,3.01,184.42,184.34,4.5260581]
[1755707101788,2.99442106,184.4,184.34,4.5260581]
[1755707101986,140.36,184.45,184.32,4.5260581]
[1755707101987,3.01,184.35,184.32,4.5260581]
[1755707102191,2.99442106,184.34,184.29,4.5260581]
[1755707102500,3.01,184.33,184.28,4.5260581]
[1755707102793,6.00442106,184.38,184.28,13.0422581]
[1755707102999,6.00442106,184.38,184.3,3.09]
[1755707103497,6.00442106,184.38,184.28,4.5260581]
[1755707103794,2.99442106,184.35,184.26,7.6160581]
[1755707103995,2.99442106,184.35,184.26,3.09]
[1755707104296,3.01,184.37,184.26,3.09]
[1755707104497,3.01,184.37,184.26,8.5169]
[1755707104797,3.01,184.37,184.27,3.09]
[1755707105794,3.01,184.37,184.23,3.09]
[1755707106198,3.01,184.37,184.23,7.6160581]
[1755707106493,3.01,184.37,184.23,3.09]
[1755707107092,140.36,184.41,184.23,3.09]
[1755707107093,4.99736764,184.36,184.23,3.09]
[1755707107298,3.01,184.35,184.23,3.09]
[1755707107701,3.01,184.35,184.26,3.09]
[1755707107999,3.01,184.39,184.26,3.09]
[1755707108199,3.01,184.39,184.29,3.09]
[1755707109604,4.99736764,184.38,184.29,3.09]
[1755707109803,3.01,184.37,184.23,5.4277]
[1755707110000,4.99736764,184.34,184.21,3.09]
[1755707110200,3.01,184.33,184.21,3.09]
[1755707110600,3.01,184.33,184.22,5.428]
[1755707110800,3.01,184.33,184.21,3.09]
[1755707111203,3.01,184.33,184.24,3.09]
[1755707112712,8.00736764,184.37,184.24,3.09]
[1755707112919,3.01,184.37,184.24,3.09]
[1755707113710,8.00736764,184.37,184.24,3.09]
[1755707114020,3.01,184.36,184.24,3.09]
[1755707114414,4.99736764,184.33,184.24,3.09]
[1755707114615,4.99736764,184.33,184.2,4.03268068]
[1755707114616,3.01,184.32,184.2,4.03268068]
[1755707114819,3.01,184.32,184.2,3.09]
[1755707115622,3.01,184.3,184.2,3.09]
[1755707117317,3.01,184.28,184.16,4.03461259]
[1755707117513,3.01,184.28,184.16,9.46431259]
[1755707117921,3.01,184.28,184.16,4.03461259]
[1755707118219,3.01,184.28,184.16,3.09]
[1755707119710,3.01,184.28,184.16,8.5198]
[1755707120019,143.45,184.28,184.16,8.5198]
[1755707120221,3.01,184.28,184.16,8.5197]
[1755707120423,143.45,184.28,184.16,8.5197]
[1755707120614,3.01,184.28,184.16,3.09]
[1755707120811,143.47,184.28,184.17,5.4294]
[1755707121021,143.47,184.28,184.16,3.09]
[1755707122512,3.01,184.28,184.16,3.09]
[1755707122915,4.99736764,184.33,184.16,3.09]
[1755707123117,3.01,184.32,184.16,3.09]
[1755707123518,3.01,184.32,184.23,8.5176]
[1755707125016,3.01,184.32,184.23,3.09]
[1755707126217,3.01,184.32,184.23,8.5176]
[1755707126422,3.01,184.32,184.23,3.09]
[1755707127120,3.01,184.32,184.23,8.5175]
[1755707127729,3.01,184.32,184.24,5.4274]
[1755707127919,3.01,184.32,184.23,3.09]
[1755707128428,3.01,184.32,184.25,5.427]
[1755707129122,3.01,184.32,184.23,3.09]
[1755707129123,143.49,184.36,184.26,8.3169]
[1755707129828,140.46,184.35,184.26,2.89]
[1755707130227,3.03,184.36,184.26,5.4268]
[1755707130427,364.46,184.38,184.27,2.89]
[1755707130930,3.03,184.41,184.32,2.89]
[1755707131841,257.51410168,184.43,184.32,2.89]
[1755707132134,117.05410168,184.43,184.35,5.424]
[1755707132336,117.05410168,184.43,184.28,2.89]
[1755707132831,117.05410168,184.43,184.27,4.99736764]
[1755707132832,117.05410168,184.43,184.37,2.89]
[1755707134429,0.04173615,184.42,184.38,0.03607388]
[1755707135337,3.07173615,184.42,184.38,0.03607388]
[1755707135536,3.03,184.4,184.38,0.03607388]
[1755707136634,0.04173615,184.42,184.38,0.03607388]
[1755707136834,3.03,184.41,184.38,0.03607388]
[1755707137742,3.03,184.4,184.38,0.03607388]
[1755707138344,3.03,184.39,184.38,0.03607388]
[1755707140834,143.45173615,184.42,184.38,0.03607388]
[1755707141135,3.03,184.41,184.38,0.03607388]
[1755707141334,140.42173615,184.42,184.38,0.03607388]
[1755707141538,143.45173615,184.42,184.38,0.03607388]
[1755707141839,3.03,184.41,184.38,0.03607388]
[1755707142533,140.40173615,184.42,184.38,0.03607388]
[1755707142734,143.43173615,184.42,184.38,0.03607388]
[1755707142931,140.40173615,184.42,184.38,0.03607388]
[1755707143137,3.03,184.41,184.38,0.03607388]
[1755707145038,0.04173615,184.42,184.38,0.03607388]
[1755707145434,0.04173615,184.42,184.41,2.89]
[1755707147834,0.04173615,184.42,184.38,0.03607388]
[1755707148037,0.04173615,184.42,184.4,2.89]
[1755707148236,0.04173615,184.42,184.41,2.89]
[1755707148432,0.04173615,184.42,184.38,0.03607388]
[1755707148646,0.04173615,184.42,184.4,2.89]
[1755707148841,0.04173615,184.42,184.38,5.45917388]
[1755707149044,0.04173615,184.42,184.41,2.89]
[1755707149346,0.04173615,184.42,184.38,0.03607388]
[1755707149548,3.03,184.4,184.38,0.03607388]
[1755707149747,3.03,184.39,184.38,0.03607388]
[1755707151344,140.34,184.4,184.38,0.03607388]
[1755707151940,143.37,184.4,184.38,0.03607388]
[1755707152844,3.03,184.4,184.38,0.03607388]
[1755707154344,3.03,184.39,184.38,0.03607388]
[1755707155345,143.33,184.41,184.38,0.03607388]
[1755707156546,140.3,184.41,184.38,0.03607388]
[1755707156747,140.3,184.41,184.39,3.07]
[1755707157355,3.02,184.39,184.38,0.03607388]
[1755707158347,3.02,184.39,184.28,3.07]
[1755707158756,3.02,184.39,184.29,5.4259]
[1755707159045,3.02,184.39,184.28,3.07]
[1755707159251,3.02,184.39,184.28,8.4961]
[1755707159451,3.02,184.39,184.28,3.07]
[1755707159752,0.03745541,184.35,184.28,3.07]
[1755707161162,0.03745541,184.35,184.24,3.07]
[1755707161163,3.02,184.34,184.24,3.07]
[1755707161355,4.99736764,184.33,184.24,3.07]
[1755707161550,3.02,184.32,184.24,3.07]
[1755707161859,3.02,184.29,184.2,3.07]
[1755707162151,3.02,184.27,184.18,4.5260581]
[1755707162354,3.02,184.27,184.14,4.5260581]
[1755707162551,3.02,184.24,184.13,7.5960581]
[1755707162954,4.99736764,184.25,184.13,7.5960581]
[1755707162955,3.02,184.21,184.13,7.5960581]
[1755707163149,140.26,184.2,184.13,7.5960581]
[1755707163344,3.02,184.21,184.14,5.4302]
[1755707163549,140.29945399,184.22,184.13,3.07]
[1755707163755,0.03945399,184.22,184.13,3.07]
[1755707163956,0.03945399,184.22,184.15,5.4299]
[1755707164151,0.03945399,184.22,184.13,3.07]
[1755707165154,3.05945399,184.22,184.13,3.07]
[1755707168562,3.05945399,184.22,184.13,8.5005]
[1755707169061,3.05945399,184.22,184.13,3.07]
[1755707169250,3.05945399,184.22,184.13,8.5007]
[1755707169455,3.05945399,184.22,184.13,3.07]
[1755707171050,3.05945399,184.22,184.15,5.4302]
[1755707171255,0.03945399,184.22,184.16,3.07]
[1755707171759,3.02,184.26,184.16,3.07]
[1755707171967,0.04172788,184.21,184.16,3.07]
[1755707172161,0.04172788,184.21,184.08,5.47109395]
[1755707172162,0.04172788,184.21,184.15,3.07]
[1755707172762,140.32,184.29,184.19,8.499]
[1755707172962,0.03439649,184.2,184.19,8.499]
[1755707173161,0.03439649,184.2,184.19,3.07]
[1755707173362,3.02,184.28,184.19,3.07]
[1755707173562,0.04097781,184.21,184.19,3.07]
[1755707174062,3.02,184.25,184.15,3.07]